bitfinex/quotes_ETHUSD_20250223
["timestamp","ask_amount","ask_price","bid_price","bid_amount"]
[1740351937868,3.55084,2816.3,2815.6,4.97005417]
[1740351938075,3.55082,2816.3,2815.7,3.55149]
[1740351938322,3.55082,2816.3,2815.8,0.85215442]
[1740351938594,3.55082,2816.3,2815.8,3.5513]
[1740351939395,3.55082,2816.3,2815.8,7.10259]
[1740351939603,3.55082,2816.3,2815.8,3.55129]
[1740351940111,5.25,2816.8,2816.5,3.55049]
[1740351940264,0.7824,2816.9,2816.4,3.55063]
[1740351940757,0.7762,2817.2,2816.4,0.436003]
[1740351940957,4.32554,2817.5,2816.8,3.55003]
[1740351941158,0.7762,2817.9,2817.2,2.76431173]
[1740351941394,0.7762,2818.5,2817.6,3.54911]
[1740351941583,0.7762,2818.5,2818.1,3.54841]
[1740351941772,3.54775,2818.7,2818.1,7.09683]
[1740351942003,0.432395,2818.7,2818.3,3.54821]
[1740351942378,0.432395,2818.7,2818.1,0.7725]
[1740351942379,0.432395,2818.7,2818.1,4.32095]
[1740351942573,0.432395,2818.7,2818.2,3.54836]
[1740351943093,0.432395,2818.7,2818.1,4.32095]
[1740351943289,0.432395,2818.7,2817.6,5.39]
[1740351943463,5.25,2818.7,2817.7,3.80981173]
[1740351943802,4.30126,2819.6,2818.5,0.7725]
[1740351944004,4.30126,2819.6,2818.6,3.54786]
[1740351944005,3.54693,2819.4,2818.6,3.54786]
[1740351944177,3.54693,2819.4,2818.8,3.54749]
[1740351944408,4.30125,2819.6,2819.0,3.54733]
[1740351944635,0.430125,2819.5,2819.0,3.54726]
[1740351944834,0.430125,2819.5,2819.1,3.54718]
[1740351945144,0.7546,2819.6,2819.2,7.09409]
[1740351945286,3.0,2819.7,2819.2,3.547]
[1740351945492,0.751,2819.9,2819.4,3.54676]
[1740351945728,4.2973,2819.9,2819.3,3.54694]
[1740351945927,4.72703,2819.9,2819.3,3.54694]
[1740351946129,3.0,2819.8,2819.3,3.54694]
[1740351946301,3.0,2819.8,2819.3,7.09384]
[1740351946507,3.54654,2819.7,2819.1,3.54716]
[1740351946830,7.09313,2819.7,2819.1,3.54716]
[1740351947129,3.54663,2819.6,2819.1,3.54716]
[1740351947333,0.709317,2819.6,2818.8,5.39]
[1740351947632,3.54721,2819.2,2818.8,5.39]
[1740351948011,3.54689,2819.4,2818.9,3.54746]
[1740351948194,3.54713,2819.2,2818.8,5.39]
[1740351949450,3.54725,2819.1,2818.8,5.39]
[1740351949644,3.54725,2819.1,2818.5,7.77671645]
[1740351949808,3.54725,2819.1,2818.5,5.15462127]
[1740351950013,3.54783,2818.7,2818.5,4.38212127]
[1740351950215,3.54781,2818.7,2818.5,3.45632645]
[1740351950430,3.54759,2818.9,2818.5,3.45632645]
[1740351950652,3.54843,2818.2,2817.8,3.45632645]
[1740351950823,3.54869,2818.0,2817.6,0.971162]
[1740351951024,5.25,2818.8,2817.9,0.7648]
[1740351951246,0.801,2819.0,2818.5,3.5479]
[1740351951453,3.54724,2819.1,2818.5,3.5479]
[1740351951988,3.54724,2819.1,2818.5,7.09578]
[1740351952153,3.54724,2819.1,2818.5,3.54788]
[1740351952351,3.54662,2819.6,2818.9,3.45632645]
[1740351952670,0.801,2819.7,2819.2,3.54709]
[1740351952986,0.69421005,2820.0,2819.5,3.45632645]
[1740351952987,3.54618,2820.0,2819.5,3.45632645]
[1740351953354,0.801,2820.1,2819.2,3.45632645]
[1740351953550,3.54672,2819.6,2819.2,3.45632645]
[1740351953769,7.09344,2819.6,2819.2,3.45632645]
[1740351954069,3.54672,2819.6,2819.2,3.45632645]
[1740351954386,1.30798185,2820.1,2819.2,3.45632645]
[1740351954552,3.54679,2819.5,2819.1,5.39]
[1740351954755,3.5471,2819.2,2819.1,5.39]
[1740351954941,4.34793,2819.4,2818.7,0.7648]
[1740351955282,9.59723,2819.9,2819.4,3.54683]
[1740351955465,3.54663,2819.6,2819.2,3.45632645]
[1740351955685,3.54663,2819.6,2819.2,3.8019591]
[1740351955891,3.54673,2819.5,2819.2,3.8019591]
[1740351956055,3.54666,2819.6,2818.9,3.54738]
[1740351956251,3.54668,2819.6,2819.0,3.54725]
[1740351956598,3.54673,2819.5,2819.0,3.54735]
[1740351956895,3.54673,2819.5,2818.9,3.54738]
[1740351957104,3.54673,2819.5,2819.0,3.54735]
[1740351957266,3.54673,2819.5,2819.0,4.256823]
[1740351957601,3.54685,2819.4,2818.7,6.1548]
[1740351957772,0.274,2819.9,2819.2,3.54704]
[1740351957959,4.0452,2820.0,2819.2,3.54704]
[1740351958159,5.04702585,2820.0,2819.2,3.54704]
[1740351958360,7.09257,2819.9,2819.3,3.54697]
[1740351958559,5.04702585,2820.0,2819.0,3.54733]
[1740351958755,3.54669,2819.6,2819.1,3.54716]
[1740351959273,7.09283,2819.8,2819.3,3.54697]
[1740351959485,3.54656,2819.7,2819.1,3.54715]
[1740351959886,3.54704,2819.3,2818.8,3.5476]
[1740351960390,3.54656,2819.7,2818.8,3.5476]
[1740351960578,3.54676,2819.5,2819.0,3.54726]
[1740351961009,3.54676,2819.5,2818.9,1.31587265]
[1740351961010,3.54698,2819.3,2818.9,1.31587265]
[1740351961171,3.54773,2818.7,2818.4,0.7704]
[1740351961371,0.8099,2819.3,2818.4,0.7704]
[1740351961697,0.8099,2819.3,2818.4,4.31849]
[1740351961698,3.54723,2819.1,2818.4,4.31849]
[1740351961991,3.54735,2819.0,2818.4,4.31849]
[1740351962195,3.54762,2818.8,2818.4,5.105167]
[1740351962356,3.54771,2818.8,2818.4,1.557077]
[1740351962758,3.5478,2818.7,2818.1,4.31882]
[1740351963267,3.5478,2818.7,2818.2,3.54827]
[1740351963457,3.54771,2818.8,2818.3,3.54821]
[1740351963678,3.54771,2818.8,2818.4,3.5481]
[1740351963900,3.54742,2819.0,2818.1,0.7704]
[1740351963901,0.8099,2819.3,2818.1,4.22672645]
[1740351964070,0.8099,2819.3,2818.2,6.35167264]
[1740351964272,3.54817,2818.4,2818.1,0.7704]
[1740351964475,3.0,2818.5,2817.5,0.8034]
[1740351964800,3.0,2818.5,2817.5,7.90172]
[1740351964801,3.54855,2818.1,2817.5,7.90172]
[1740351964999,3.54855,2818.1,2817.5,4.35254]
[1740351965201,3.54863,2818.0,2817.5,4.35254]
[1740351965373,3.54855,2818.1,2817.5,7.90169]
[1740351965575,8.25,2818.5,2817.5,1.593598]
[1740351965808,8.25,2818.5,2817.6,3.45632645]
[1740351965988,3.5486,2818.1,2817.5,1.593598]
[1740351966192,3.5489,2817.8,2817.5,0.8034]
[1740351966501,8.25,2818.5,2817.2,3.54952]
[1740351966502,0.7874,2818.2,2817.2,0.7934]
[1740351966709,3.54894,2817.8,2817.2,4.34295]
[1740351966865,3.54904,2817.7,2817.2,0.7934]
[1740351967062,7.0979,2817.8,2817.2,4.34294]
[1740351967269,6.54861,2818.0,2817.2,0.7934]
[1740351967467,3.54946,2817.4,2816.9,0.7628]
[1740351967667,6.54861,2818.0,2816.9,0.7628]
[1740351968009,3.54962,2817.2,2816.9,0.7628]
[1740351968209,3.54996,2817.0,2816.6,0.7595]
[1740351968709,3.55006,2816.9,2816.3,5.39]
[1740351968866,3.54991,2817.0,2816.4,3.55059]
[1740351969071,0.7922,2817.5,2816.4,3.45632645]
[1740351969265,0.7933,2818.0,2816.6,0.7963]
[1740351969480,3.54958,2817.3,2816.6,0.7963]
[1740351969663,3.5491,2817.7,2817.1,3.54974]
[1740351969870,3.0,2817.6,2817.1,3.54974]
[1740351970066,3.5491,2817.7,2817.1,3.54974]
[1740351970067,3.0,2817.7,2817.1,3.54974]
[1740351970267,3.54918,2817.6,2817.0,3.54979]
[1740351970578,3.0,2817.7,2817.0,3.54979]
[1740351970782,3.54843,2818.2,2817.6,3.54902]
[1740351971001,6.74722977,2818.7,2817.6,3.54905]
[1740351971205,3.54882,2817.9,2817.4,6.1481]
[1740351971365,3.54882,2817.9,2817.4,0.7581]
[1740351971570,3.54882,2817.9,2817.4,4.30744]
[1740351971922,1.0796,2818.4,2817.1,6.1853]
[1740351972125,3.54844,2818.2,2817.6,3.54911]
[1740351972270,6.54839,2818.2,2817.6,3.54911]
[1740351972615,3.0,2818.2,2817.6,3.54905]
[1740351972769,3.0,2818.2,2817.7,4.37442]
[1740351973170,1.090116,2818.2,2817.4,0.7965]
[1740351973370,3.54868,2818.0,2817.4,4.34585]
[1740351973571,3.54849,2818.1,2817.4,4.34585]
[1740351973808,3.0,2818.2,2817.4,0.7965]
[1740351974073,3.0,2818.2,2817.7,3.54891]
[1740351974493,3.0,2818.2,2817.8,3.54886]
[1740351975299,6.053,2818.7,2818.0,3.54859]
[1740351975613,4.35073,2818.7,2818.0,4.37929]
[1740351975771,4.35073,2818.7,2818.1,3.54849]
[1740351975974,0.803,2818.7,2818.0,0.8307]
[1740351976283,3.0,2818.5,2818.0,4.37931]
[1740351976911,3.0,2818.6,2818.1,3.54849]
[1740351977116,0.803,2819.0,2818.0,1.3100381]
[1740351977311,3.54823,2818.3,2817.8,0.41407099]
[1740351977512,3.54807,2818.5,2817.9,3.54866]
[1740351977816,3.54807,2818.5,2817.9,7.09733]
[1740351977987,0.7951,2818.6,2817.7,0.8034]
[1740351978175,3.54816,2818.4,2817.9,3.54869]
[1740351978371,0.434326,2818.4,2817.7,0.8034]
[1740351978616,3.54874,2817.9,2817.6,5.39]
[1740351978818,3.54825,2818.3,2817.2,0.61853]
[1740351978819,0.7508,2818.1,2817.2,0.61853]
[1740351978976,3.54913,2817.6,2817.2,0.61853]
[1740351979176,3.54947,2817.4,2817.2,0.61853]
[1740351979385,3.54947,2817.4,2817.0,0.7946]
[1740351979880,3.0,2817.9,2817.2,3.54953]
[1740351980080,5.25,2818.1,2817.1,4.09974]
[1740351980319,3.54869,2818.0,2817.4,3.54933]
[1740351980526,3.54869,2818.0,2817.5,3.54923]
[1740351980894,6.54849,2818.1,2817.4,4.338227]
[1740351981094,3.5487,2818.0,2817.4,4.338227]
[1740351981380,3.0,2818.1,2817.5,3.54918]
[1740351981694,6.54849,2818.1,2817.5,3.54918]
[1740351981877,6.54849,2818.1,2817.2,0.7901]
[1740351982082,6.54849,2818.1,2817.6,3.54911]
[1740351982696,7.09642,2818.4,2817.6,3.54902]
[1740351982912,3.54798,2818.5,2817.5,0.8121]
[1740351983077,3.54907,2817.7,2817.2,0.8121]
[1740351983284,3.0,2818.2,2817.6,3.54899]
[1740351983613,6.54839,2818.2,2817.7,3.54893]
[1740351984125,3.0,2818.3,2817.9,3.54867]
[1740351984496,3.0,2818.3,2818.0,3.54858]
[1740351984678,3.0,2818.3,2817.8,4.33287]
[1740351984882,3.54831,2818.3,2817.8,0.7841]
[1740351985081,3.0,2818.2,2817.8,0.7841]
[1740351985307,3.0,2818.2,2817.8,4.33285]
[1740351985521,3.54849,2818.1,2817.9,0.433285]
[1740351985744,0.767,2818.5,2817.4,0.8166]
[1740351985920,3.54885,2817.9,2817.4,0.8166]
[1740351986118,3.54893,2817.8,2817.4,0.8166]
[1740351986347,3.54937,2817.4,2817.3,5.39]
[1740351986560,7.09857,2817.5,2817.1,0.7842]
[1740351986732,3.54939,2817.4,2817.1,1.572602]
[1740351987052,3.54956,2817.3,2817.1,0.7842]
[1740351987254,3.54921,2817.6,2817.1,0.7842]
[1740351987556,3.54938,2817.4,2817.1,0.7842]
[1740351988302,3.54921,2817.6,2817.1,0.7842]
[1740351988502,0.8188,2817.8,2817.1,4.33387]
[1740351988703,3.54905,2817.7,2817.1,4.33387]
[1740351988898,3.54905,2817.7,2817.2,3.54956]
[1740351989307,3.54935,2817.5,2817.1,1.217587]
[1740351989504,3.54933,2817.5,2817.1,0.7842]
[1740351989708,0.8327,2818.1,2817.1,0.7842]
[1740351990051,3.0,2817.9,2817.5,3.54924]
[1740351990400,0.7596,2818.4,2817.6,3.549]
[1740351990401,3.5483,2818.3,2817.6,3.549]
[1740351990653,3.5483,2818.3,2817.6,3.54911]
[1740351990823,3.54855,2818.1,2817.6,3.54911]
[1740351991019,3.0,2818.2,2817.2,5.39]
[1740351991342,3.54919,2817.6,2817.2,5.39]
[1740351991654,3.54982,2817.1,2816.8,0.7594]
[1740351991960,3.55,2816.9,2816.6,5.39]
[1740351992308,3.0,2817.5,2816.6,5.39]
[1740351992510,3.54956,2817.3,2816.8,3.55012]
[1740351992853,3.54974,2817.1,2816.6,5.39]
[1740351993142,3.54974,2817.1,2816.6,8.94031]
[1740351993630,3.54945,2817.4,2816.8,3.55]
[1740351993836,3.7837,2817.7,2816.7,3.55025]
[1740351994032,3.54924,2817.5,2816.5,0.8198]
[1740351994246,3.55007,2816.9,2816.5,0.8198]
[1740351994554,3.55046,2816.6,2816.2,0.7704]
[1740351994849,3.54949,2817.3,2816.0,5.39]
[1740351994850,3.55073,2816.4,2816.0,5.39]
[1740351995053,3.5498,2817.1,2816.5,3.55039]
[1740351995346,3.0,2816.9,2816.5,4.32079]
[1740351996406,3.0,2816.9,2816.5,7.87121]
[1740351996642,9.57004,2817.2,2816.7,3.55022]
[1740351996643,8.79974,2817.2,2816.7,3.55022]
[1740351997005,3.54988,2817.0,2816.5,4.32079]
[1740351997209,3.0,2817.1,2816.5,0.7704]
[1740351997506,5.15717,2817.0,2816.2,3.55077]
[1740351997707,3.55013,2816.8,2816.3,3.55071]
[1740351998946,3.55027,2816.7,2816.2,3.55087]
[1740351999721,3.55027,2816.7,2816.2,3.55081]
[1740351999921,3.5501,2816.9,2816.4,3.55063]
[1740352000139,3.5501,2816.9,2816.1,0.7719]
[1740352000140,3.55013,2816.8,2816.3,3.55065]
[1740352000677,0.788253,2816.8,2816.1,0.7719]
[1740352000852,3.55059,2816.5,2816.0,5.39]
[1740352001036,7.10119,2816.5,2816.0,8.94113]
[1740352001244,3.55033,2816.7,2816.0,8.94111]
[1740352001457,3.55051,2816.5,2816.0,8.94113]
[1740352001884,0.710084,2816.5,2815.8,0.7888]
[1740352002175,3.55083,2816.3,2815.8,4.34017]
[1740352002687,6.3063,2817.0,2815.5,0.7998]
[1740352002688,3.55151,2815.7,2815.5,0.7998]
[1740352002982,3.55145,2815.8,2815.3,3.55199]
[1740352003165,7.10293,2815.8,2815.3,4.884686]
[1740352003372,3.55145,2815.8,2815.3,4.884686]
[1740352003762,3.7929,2816.2,2815.3,4.884686]
[1740352003956,4.0669,2816.2,2815.3,3.55199]
[1740352004160,1.0669,2816.2,2815.2,4.3849]
[1740352004341,1.0669,2816.2,2815.4,3.55189]
[1740352004342,3.55101,2816.1,2815.4,3.55189]
[1740352004883,3.55119,2816.0,2815.5,3.55167]
[1740352006858,3.55119,2816.0,2815.5,3.55164]
[1740352007371,7.34387,2816.2,2815.5,0.710353]
[1740352007572,7.34387,2816.2,2815.8,3.55138]
[1740352007773,7.34387,2816.2,2815.7,3.55151]
[1740352007976,0.7929,2816.2,2815.8,3.55138]
[1740352008351,6.55078,2816.3,2815.8,3.55138]
[1740352008750,1.0704,2816.5,2815.5,0.7735]
[1740352008751,0.7964,2816.5,2815.5,0.7735]
[1740352009077,1.0704,2816.9,2816.5,3.5504]
[1740352009274,4.34646,2816.9,2816.4,3.5506]
[1740352009681,3.0,2816.8,2816.5,3.55048]
[1740352009994,4.34646,2816.9,2816.5,3.55048]
[1740352011596,4.34646,2816.9,2816.2,3.55088]
[1740352011941,3.55074,2816.4,2815.7,5.39]
[1740352012060,3.55074,2816.4,2815.8,3.55132]
[1740352012266,3.55095,2816.2,2815.7,6.196]
[1740352012475,3.55097,2816.2,2815.7,6.196]
[1740352012678,3.55096,2816.2,2815.7,9.74748]
[1740352013214,3.55083,2816.3,2815.7,9.74751]
[1740352013405,3.55083,2816.3,2815.8,3.55132]
[1740352014063,3.55089,2816.2,2815.8,3.55132]
[1740352014267,3.55136,2815.9,2815.7,5.39]
[1740352014591,3.55119,2816.0,2815.7,5.39]
[1740352014761,3.55089,2816.2,2815.7,5.39]
[1740352014962,3.55089,2816.2,2815.7,8.94149]
[1740352015275,3.55101,2816.1,2815.7,8.94149]
[1740352015478,3.55101,2816.1,2815.7,5.39]
[1740352015985,3.55101,2816.1,2815.7,8.94148]
[1740352016499,3.55122,2816.0,2815.7,5.39]
[1740352016670,7.10191,2816.2,2815.7,5.39]
[1740352017601,3.55091,2816.2,2815.7,5.39]
[1740352017894,3.55102,2816.1,2815.6,3.55153]
[1740352019269,3.55102,2816.1,2815.6,7.10311]
[1740352019559,3.55102,2816.1,2815.6,7.1031]
[1740352019724,4.35062,2816.6,2816.2,3.55088]
[1740352019869,3.55069,2816.4,2815.6,1.325051]
[1740352020074,0.8002,2816.6,2816.1,3.55093]
[1740352020270,3.8002,2816.6,2816.1,3.55091]
[1740352020583,7.35059,2816.6,2816.1,3.55097]
[1740352020762,0.8002,2816.6,2816.3,3.55068]
[1740352020967,3.45632645,2817.2,2816.3,3.5507]
[1740352020968,0.8002,2816.9,2816.3,3.5507]
[1740352021267,0.8002,2816.9,2815.9,8.94125]
[1740352021467,0.8002,2816.9,2816.3,3.55068]
[1740352021716,6.55019,2816.8,2816.3,3.55068]
[1740352021895,6.55019,2816.8,2816.3,3.55066]
[1740352022303,6.55019,2816.8,2816.3,7.10134]
[1740352022471,6.55019,2816.8,2816.3,3.55066]
[1740352023017,3.55025,2816.7,2816.3,3.55066]
[1740352023632,10.10041,2816.8,2816.3,3.55066]
[1740352023941,6.55019,2816.8,2816.3,3.55066]
[1740352024805,6.55019,2816.8,2816.3,3.55068]
[1740352026043,3.55034,2816.7,2816.2,3.55087]
[1740352026637,3.55034,2816.7,2816.2,3.55077]
[1740352027236,3.55034,2816.7,2816.3,3.55072]
[1740352027581,3.55034,2816.7,2816.2,3.55077]
[1740352028998,3.55034,2816.7,2816.2,7.10158]
[1740352029184,3.55034,2816.7,2816.2,3.55077]
[1740352029735,3.55034,2816.7,2816.2,3.55081]
[1740352031157,3.55034,2816.7,2816.2,7.10162]
[1740352031557,3.55034,2816.7,2816.3,3.55072]
[1740352032113,3.0,2816.8,2816.3,3.55072]
[1740352032314,6.55012,2816.8,2816.3,3.55072]
[1740352032654,3.55025,2816.7,2816.3,3.55072]
[1740352033052,3.0,2816.8,2816.3,3.55072]
[1740352033761,3.55026,2816.7,2816.2,3.55086]
[1740352034349,3.55026,2816.7,2815.9,5.39]
[1740352034350,3.55071,2816.4,2815.9,5.39]
[1740352034586,3.55078,2816.3,2815.9,5.39]
[1740352035058,3.55095,2816.2,2815.9,5.39]
[1740352035257,3.55107,2816.1,2815.9,5.39]
[1740352036709,0.8145,2816.2,2815.4,0.8066]
[1740352036927,3.55162,2815.7,2815.2,5.39]
[1740352037130,5.76282259,2816.0,2814.7,5.39]
[1740352037332,3.55202,2815.3,2814.8,3.55258]
[1740352037545,3.55202,2815.3,2814.7,9.7493]
[1740352037820,4.36634,2815.5,2814.9,3.55249]
[1740352038041,4.36634,2815.5,2814.9,7.10498]
[1740352038216,4.36634,2815.5,2814.8,0.11117694]
[1740352038552,3.55192,2815.4,2814.8,0.11117694]
[1740352038853,3.55204,2815.3,2814.8,3.66381694]
[1740352039217,7.10413,2815.3,2814.8,3.66381694]
[1740352039417,3.55204,2815.3,2814.8,3.66381694]
[1740352039607,3.55222,2815.2,2814.8,0.11117694]
[1740352040356,4.36635,2815.5,2814.8,0.11117694]
[1740352040556,0.8145,2815.5,2815.2,3.55206]
[1740352040857,6.55157,2815.7,2815.2,3.55206]
[1740352041358,3.0,2815.7,2815.2,7.10412]
[1740352041536,0.8307,2815.8,2815.6,3.5516]
[1740352041737,0.8307,2815.8,2815.0,5.39]
[1740352042049,3.55145,2815.8,2815.3,4.3806]
[1740352042215,3.55145,2815.8,2815.3,3.552]
[1740352042553,0.8307,2816.1,2815.1,3.55224]
[1740352042761,0.8307,2815.8,2815.0,8.94238]
[1740352043079,4.38178,2816.1,2815.6,3.55155]
[1740352043226,4.38178,2816.1,2815.4,3.5518]
[1740352043227,7.08767736,2816.0,2815.4,3.5518]
[1740352043431,6.55113,2816.0,2815.5,3.55173]
[1740352043813,3.0,2816.0,2815.5,3.55173]
[1740352044159,3.0,2816.0,2815.6,3.55161]
[1740352044927,0.005,2932.2,2815.7,7.11941259]
[1740352044928,0.8263,2816.6,2815.7,7.11941259]
[1740352045265,0.8263,2816.9,2816.8,3.55012]
[1740352045461,0.8263,2817.2,2816.8,3.55012]
[1740352045669,0.8263,2817.5,2817.0,3.54986]
[1740352045831,0.8263,2817.5,2816.9,0.8052]
[1740352046221,0.8263,2817.5,2816.8,5.39]
[1740352046415,3.54975,2817.1,2816.8,5.39]
[1740352047536,3.54994,2817.0,2816.8,5.39]
[1740352047837,3.0,2817.2,2816.8,5.39]
[1740352048449,6.54964,2817.2,2816.8,5.39]
[1740352048644,3.54975,2817.1,2816.8,5.39]
[1740352048933,3.0,2817.2,2816.8,8.94009]
[1740352049281,3.0,2817.2,2816.8,5.39]
[1740352049664,3.0,2817.3,2816.8,5.39]
[1740352049854,1.53452335,2817.5,2816.8,5.39]
[1740352050254,1.53452335,2817.5,2816.8,8.94002]
[1740352050456,3.54978,2817.1,2816.8,5.39]
[1740352050649,3.54996,2817.0,2816.5,5.39]
[1740352051152,3.55001,2816.9,2816.3,0.7872]
[1740352051366,0.7748,2816.9,2816.3,0.7872]
[1740352051570,0.7748,2816.9,2816.1,8.94092]
[1740352051571,3.55034,2816.7,2816.1,8.94092]
[1740352052302,3.55034,2816.7,2816.2,3.55086]
[1740352053591,3.55045,2816.6,2816.1,5.39]
[1740352053797,3.55052,2816.5,2816.1,5.39]
[1740352054096,3.55045,2816.6,2816.1,8.94089]
[1740352056395,3.5505,2816.5,2816.1,5.39]
[1740352056993,3.55045,2816.6,2816.1,5.39]
[1740352057245,3.5506,2816.5,2816.1,5.39]
[1740352058022,3.55073,2816.4,2816.1,5.39]
[1740352058225,3.55079,2816.3,2816.1,5.39]
[1740352058429,0.710152,2816.3,2815.7,0.7693]
[1740352058635,3.55102,2816.1,2815.7,0.7693]
[1740352059252,3.55089,2816.2,2815.7,4.3208]
[1740352059453,3.55102,2816.1,2815.7,4.3208]
[1740352060252,4.35536,2816.3,2815.7,3.55151]
[1740352060559,7.90621,2816.3,2815.8,3.55137]
[1740352060739,4.35536,2816.3,2815.7,3.55151]
[1740352060917,3.55089,2816.2,2815.7,3.55151]
[1740352061336,0.8046,2816.3,2815.7,3.55151]
[1740352061536,3.55094,2816.2,2815.7,3.55145]
[1740352061735,3.55094,2816.2,2815.8,3.55137]
[1740352061932,3.55094,2816.2,2815.5,8.94169]
[1740352062224,3.55094,2816.2,2815.7,3.5515]
[1740352062541,7.10193,2816.2,2815.7,3.5515]
[1740352062860,3.55094,2816.2,2815.7,3.5515]
[1740352063034,3.55114,2816.0,2815.5,6.718447]
[1740352063357,3.55114,2816.0,2815.5,5.39]
[1740352063565,3.55127,2815.9,2815.5,5.39]
[1740352065272,3.55114,2816.0,2815.5,8.94173]
[1740352065570,7.10239,2816.0,2815.5,8.94173]
[1740352065948,3.55158,2815.7,2815.5,5.39]
[1740352067065,3.55164,2815.6,2815.5,5.39]
[1740352067271,3.55157,2815.7,2815.2,8.94208]
[1740352067576,3.55165,2815.6,2815.2,8.94208]
[1740352067956,3.55152,2815.7,2815.2,8.94208]
[1740352068272,7.10286,2815.8,2815.2,12.49413]
[1740352068563,3.5514,2815.8,2815.2,8.94205]
[1740352068771,3.55151,2815.7,2815.2,8.94205]
[1740352069154,3.55151,2815.7,2815.2,5.39]
[1740352069353,3.5517,2815.6,2815.2,5.39]
[1740352069689,3.5517,2815.6,2815.2,8.94214]
[1740352070345,3.5517,2815.6,2815.2,5.39]
[1740352071176,4.33182,2815.7,2815.2,8.94208]
[1740352071477,0.7803,2815.7,2815.3,3.552]
[1740352071681,4.33181,2815.7,2815.3,3.552]
[1740352072216,0.7803,2815.7,2815.3,3.552]
[1740352072387,4.33187,2815.7,2815.3,3.552]
[1740352073684,0.7803,2815.7,2815.3,3.552]
[1740352074180,4.33185,2815.7,2815.3,3.552]
[1740352075189,0.7803,2815.7,2815.3,3.552]
[1740352075347,4.33184,2815.7,2815.3,3.552]
[1740352078604,7.88344,2815.7,2815.2,8.94213]
[1740352078810,4.33184,2815.7,2815.3,3.552]
[1740352079408,4.33184,2815.7,2815.2,8.94209]
[1740352079616,4.33184,2815.7,2815.3,3.55201]
[1740352081603,0.7803,2815.7,2815.3,3.55196]
[1740352082010,4.33181,2815.7,2815.3,3.55196]
[1740352082459,4.33183,2815.7,2815.3,3.55196]
[1740352082663,4.33183,2815.7,2815.3,7.1039]
[1740352082885,4.33183,2815.7,2815.3,3.55194]
[1740352083613,3.55178,2815.5,2815.0,8.94232]
[1740352083769,5.120164,2815.7,2814.8,0.7555]
[1740352084113,3.55208,2815.3,2814.8,4.30813]
[1740352084411,3.55217,2815.2,2814.8,4.30813]
[1740352084712,3.55233,2815.1,2814.8,0.7555]
[1740352085010,3.55233,2815.1,2814.6,8.94278]
[1740352085189,3.55233,2815.1,2814.7,3.55276]
[1740352085563,3.55233,2815.1,2814.6,10.327099]
[1740352085794,3.5524,2815.0,2814.6,10.327099]
[1740352086311,3.55233,2815.1,2814.6,10.327099]
[1740352086810,3.55315,2814.4,2814.3,5.39]
[1740352086966,0.8147,2814.6,2814.1,0.005]
[1740352087166,3.55302,2814.5,2814.1,0.005]
[1740352087578,3.989792,2814.5,2814.1,0.005]
[1740352087868,3.55334,2814.3,2814.1,0.005]
[1740352088065,3.5534,2814.2,2814.1,0.005]
[1740352088781,4.3858,2814.2,2814.1,0.005]
[1740352090214,5.08301858,2814.2,2814.1,0.005]
[1740352090508,9.2229307,2814.2,2814.1,0.005]
[1740352091211,9.4889307,2814.2,2814.1,0.005]
[1740352091419,9.2229307,2814.2,2814.1,0.005]
[1740352091624,0.8324,2814.2,2814.1,0.005]
[1740352092210,4.3858,2814.2,2814.1,0.005]
[1740352093124,4.256822,2814.5,2814.2,3.5534]
[1740352093125,0.703772,2814.5,2814.2,3.5534]
[1740352093324,0.7756,2814.9,2814.5,3.55294]
[1740352093617,0.7067266,2815.0,2814.8,3.55262]
[1740352093920,0.26440843,2815.2,2814.8,3.55257]
[1740352094086,4.57039,2815.4,2814.8,3.55257]
[1740352094087,0.267,2815.4,2814.8,1.539938]
[1740352094291,5.25,2815.5,2815.3,3.55194]
[1740352094490,3.55166,2815.6,2815.1,3.55219]
[1740352094683,0.7515,2815.7,2814.8,0.8294]
[1740352094917,3.55252,2814.9,2814.6,5.39]
[1740352095124,3.55266,2814.8,2814.3,6.1816]
[1740352095274,3.0,2815.4,2814.3,6.80026]
[1740352095470,3.55315,2814.4,2814.3,6.1816]
[1740352095713,3.55315,2814.4,2814.3,5.39]
[1740352095922,3.55303,2814.5,2814.3,5.39]
[1740352096476,6.55244,2815.0,2814.3,5.39]
[1740352096477,6.55252,2814.9,2814.3,5.39]
[1740352096674,3.55315,2814.4,2814.3,5.39]
[1740352096876,3.55315,2814.4,2814.3,9.008]
[1740352097401,7.263765,2814.4,2814.3,3.618]
[1740352098518,8.080465,2814.4,2814.3,3.618]
[1740352098723,8.348465,2814.4,2814.3,3.618]
[1740352098871,6.55315,2814.4,2814.3,3.618]
[1740352099079,7.36985,2814.4,2814.3,3.618]
[1740352101938,7.3701,2814.2,2814.1,1e-05]
[1740352102149,15.38292259,2814.2,2814.1,1e-05]
[1740352104929,16.1029223,2814.2,2814.1,1e-05]
[1740352105130,18.06854353,2814.2,2814.1,1e-05]
[1740352105441,21.13029353,2814.2,2814.1,1e-05]
[1740352106232,20.55119353,2814.2,2814.1,1e-05]
[1740352107029,20.81756208,2814.2,2814.1,1e-05]
[1740352108528,20.53133208,2814.2,2814.1,1e-05]